bitfinex/quotes_BTCUSD_20260308
["timestamp","ask_amount","ask_price","bid_price","bid_amount"]
[1772970192642,0.02860774,67493.0,67489.0,0.07408614]
[1772970193388,0.16373123,67494.0,67489.0,0.07408614]
[1772970193601,0.00022001,67495.0,67489.0,0.07408614]
[1772970197672,0.02842823,67495.0,67489.0,0.07408614]
[1772970198618,0.16395124,67495.0,67489.0,0.07408614]
[1772970199427,0.02795051,67494.0,67489.0,0.07408614]
[1772970199585,0.00022001,67495.0,67489.0,0.07408614]
[1772970199586,0.02795051,67492.0,67489.0,0.07408614]
[1772970200039,0.16373123,67493.0,67489.0,0.07408614]
[1772970201602,0.19142886,67493.0,67489.0,0.07408614]
[1772970202623,0.02769763,67493.0,67489.0,0.07408614]
[1772970203480,0.02769763,67493.0,67489.0,0.07428614]
[1772970203790,0.00022001,67492.0,67489.0,0.07428614]
[1772970206747,0.00022001,67498.0,67489.0,0.07428614]
[1772970206946,0.00061886,67502.0,67489.0,0.07428614]
[1772970207650,0.00022001,67505.0,67490.0,0.15297599]
[1772970207850,1e-08,67507.0,67490.0,0.15337484]
[1772970207996,0.00022001,67512.0,67490.0,0.15337484]
[1772970208205,0.00022001,67519.0,67494.0,0.15297599]
[1772970208528,0.0742733,67519.0,67499.0,0.0273852]
[1772970208880,0.16373123,67516.0,67501.0,0.07407297]
[1772970209072,0.16373123,67514.0,67501.0,0.07407297]
[1772970209276,0.16373123,67514.0,67502.0,0.00148]
[1772970209631,0.19134242,67514.0,67502.0,0.00148]
[1772970209833,0.16373123,67514.0,67502.0,0.00148]
[1772970210086,0.02761119,67513.0,67502.0,0.00148]
[1772970211308,0.02761119,67510.0,67489.0,0.07428395]
[1772970211506,0.16373123,67507.0,67491.0,0.00148]
[1772970211724,0.02761119,67504.0,67492.0,0.00148]
[1772970211852,0.02761119,67500.0,67490.0,0.07408439]
[1772970212052,0.02801004,67507.0,67491.0,0.00148]
[1772970212298,0.16413008,67507.0,67491.0,0.00148]
[1772970212605,0.02761119,67505.0,67491.0,0.00148]
[1772970212763,0.02761119,67504.0,67490.0,0.08559244]
[1772970212966,0.149656,67503.0,67492.0,0.00148]
[1772970213157,0.17726719,67503.0,67492.0,0.00148]
[1772970213358,0.17726719,67503.0,67493.0,0.07408175]
[1772970213802,0.17726719,67503.0,67494.0,0.00148]
[1772970214040,0.00039885,67507.0,67494.0,0.01295035]
[1772970214373,0.07428046,67513.0,67495.0,0.0114274]
[1772970214574,0.07428046,67513.0,67496.0,0.0114274]
[1772970214784,0.02761119,67512.0,67496.0,0.0114274]
[1772970215191,0.00022001,67513.0,67498.0,0.01138583]
[1772970215403,0.149656,67511.0,67496.0,0.07407846]
[1772970215605,0.149656,67511.0,67499.0,0.00148]
[1772970215949,0.02761119,67512.0,67499.0,0.00148]
[1772970216958,0.02761119,67511.0,67496.0,0.07407846]
[1772970217160,0.02761119,67511.0,67497.0,0.00148]
[1772970217482,0.17726719,67511.0,67498.0,0.07407626]
[1772970217685,0.00022001,67513.0,67499.0,0.01129984]
[1772970218037,0.0278312,67513.0,67499.0,0.01129984]
[1772970218233,0.07428045,67513.0,67499.0,0.01129984]
[1772970218440,0.02761119,67512.0,67500.0,0.00148]
[1772970220201,0.0278312,67512.0,67501.0,0.07407297]
[1772970220691,0.074062,67511.0,67501.0,0.07407297]
[1772970221104,0.074062,67511.0,67502.0,0.00148]
[1772970222484,0.0278312,67512.0,67502.0,0.00148]
[1772970222485,0.10189214,67512.0,67503.0,0.07407078]
[1772970222685,0.0278312,67512.0,67503.0,0.07407078]
[1772970225596,0.10189269,67512.0,67503.0,0.07407078]
[1772970226314,0.17369966,67511.0,67502.0,0.07555078]
[1772970226533,0.02404366,67509.0,67503.0,0.07407078]
[1772970227277,0.02404366,67505.0,67493.0,0.07422956]
[1772970227480,0.149656,67503.0,67494.0,0.00148]
[1772970227618,0.02404366,67502.0,67494.0,0.00148]
[1772970227818,0.07407194,67502.0,67493.0,0.00015]
[1772970228015,0.02404366,67501.0,67494.0,0.00148]
[1772970228415,0.02404366,67501.0,67495.0,0.00148]
[1772970228719,0.02404366,67500.0,67496.0,0.00148]
[1772970229256,0.149656,67497.0,67496.0,0.00148]
[1772970229467,0.17369966,67497.0,67496.0,0.00148]
[1772970230595,0.24777702,67497.0,67496.0,0.00148]
[1772970231087,0.09812102,67497.0,67496.0,0.00148]
[1772970232059,0.09912102,67497.0,67496.0,0.00148]
[1772970232263,0.09812102,67497.0,67496.0,0.00148]
[1772970232465,0.24777702,67497.0,67486.0,0.07408877]
[1772970232666,0.24877702,67497.0,67490.0,0.00148]
[1772970232861,0.24777702,67497.0,67496.0,0.0002]
[1772970233091,0.24777702,67497.0,67496.0,0.00168]
[1772970233466,0.24877702,67497.0,67496.0,0.00168]
[1772970233606,0.24777702,67497.0,67496.0,0.00168]
[1772970234562,0.09812102,67497.0,67496.0,0.0002]
[1772970235444,0.02404366,67497.0,67496.0,0.0002]
[1772970235823,0.02504366,67497.0,67496.0,0.0002]
[1772970236751,0.02404366,67497.0,67496.0,0.00168]
[1772970236933,0.02504366,67497.0,67496.0,0.00168]
[1772970237130,0.07407621,67500.0,67496.0,0.00168]
[1772970237306,0.07407381,67501.0,67496.0,0.00168]
[1772970237923,0.02404366,67500.0,67496.0,0.00168]
[1772970238699,0.00039885,67505.0,67497.0,0.07407736]
[1772970238921,0.07446757,67505.0,67497.0,0.07407736]
[1772970239287,0.07446757,67505.0,67498.0,0.00148]
[1772970239463,0.00022001,67500.0,67498.0,0.00073913]
[1772970240490,0.00022001,67500.0,67499.0,0.00148]
[1772970241187,0.00022001,67500.0,67499.0,0.00096899]
[1772970241340,0.00022001,67500.0,67499.0,0.00148]
[1772970241994,0.00022001,67500.0,67496.0,0.07407858]
[1772970242313,0.07429462,67500.0,67497.0,0.00148]
[1772970242668,0.09833828,67500.0,67496.0,3e-07]
[1772970242865,0.02404366,67499.0,67497.0,0.00148]
[1772970243302,0.02404366,67499.0,67498.0,0.00148]
[1772970243661,0.02404366,67499.0,67497.0,0.00148]
[1772970243917,0.00022001,67500.0,67497.0,0.00148]
[1772970244475,0.07429443,67500.0,67496.0,3e-07]
[1772970244720,0.07429443,67500.0,67497.0,0.00148]
[1772970245127,0.10026513,67500.0,67497.0,0.00148]
[1772970246384,0.10026536,67500.0,67497.0,0.00148]
[1772970246584,0.07429466,67500.0,67497.0,0.00148]
[1772970247207,0.0259707,67499.0,67497.0,0.00148]
[1772970247835,0.02619071,67507.0,67497.0,0.00148]
[1772970248173,0.07428662,67507.0,67497.0,0.02546146]
[1772970248826,0.07428662,67507.0,67498.0,0.07407626]
[1772970248827,0.07446749,67505.0,67498.0,0.07407626]
[1772970250038,0.00039885,67505.0,67498.0,0.07407626]
[1772970251098,0.00022001,67507.0,67498.0,0.07407626]
[1772970251249,0.00022001,67507.0,67498.0,0.07447511]
[1772970251582,0.00022001,67507.0,67498.0,0.10049858]
[1772970252135,0.00022001,67507.0,67499.0,0.02602347]
[1772970252928,0.07428704,67507.0,67499.0,0.02602347]
[1772970253330,0.07428704,67507.0,67498.0,0.07447511]
[1772970253750,0.07428704,67507.0,67499.0,0.00148]
[1772970255036,0.0742867,67507.0,67499.0,0.00148]
[1772970255238,0.0742867,67507.0,67500.0,0.07407407]
[1772970256004,0.07406534,67508.0,67500.0,0.07407407]
[1772970256214,0.07406534,67508.0,67501.0,0.02602347]
[1772970256719,0.07406534,67508.0,67500.0,0.07407407]
[1772970257363,0.07421325,67510.0,67500.0,0.07407407]
[1772970259274,0.07421325,67510.0,67501.0,0.00148]
[1772970262449,0.09985972,67510.0,67501.0,0.00168]
[1772970262853,0.10007973,67510.0,67501.0,0.00168]
[1772970264967,0.10007973,67510.0,67502.0,0.00148]
[1772970264968,0.15042747,67506.0,67502.0,0.00148]
[1772970265222,0.15042747,67505.0,67503.0,0.00148]
[1772970265421,0.02564647,67504.0,67503.0,0.00148]
[1772970265627,0.02604532,67506.0,67502.0,0.00148]
[1772970266410,0.00039885,67506.0,67502.0,0.00148]
[1772970266851,0.00139885,67506.0,67502.0,0.00148]
[1772970267957,0.07406858,67505.0,67502.0,0.00148]
[1772970269277,0.07506858,67505.0,67502.0,0.00148]
[1772970271098,0.001,67505.0,67502.0,0.00148]
[1772970271297,0.07506858,67505.0,67502.0,0.00148]
[1772970274046,0.07406858,67505.0,67502.0,0.00148]
[1772970275089,0.07506858,67505.0,67502.0,0.00148]
[1772970275749,0.07406858,67505.0,67502.0,0.00148]
[1772970277149,0.14683631,67510.0,67502.0,0.07555127]
[1772970277348,0.07448648,67510.0,67502.0,0.07555127]
[1772970277755,0.00042315,67510.0,67503.0,0.00148]
[1772970278176,0.0744867,67510.0,67503.0,0.00148]
[1772970278768,0.00042315,67510.0,67503.0,0.00148]
[1772970278925,0.07448689,67510.0,67503.0,0.00148]
[1772970279250,0.07448689,67510.0,67503.0,0.07555053]
[1772970280456,0.00042315,67510.0,67503.0,0.07555053]
[1772970280592,0.07406204,67511.0,67504.0,0.0238573]
[1772970280805,0.07428197,67512.0,67504.0,0.0238573]
[1772970280806,0.00022001,67512.0,67504.0,0.0238573]
[1772970281225,0.00022001,67512.0,67505.0,0.07406858]
[1772970281482,0.00022001,67512.0,67505.0,0.09792588]
[1772970282737,0.00022001,67513.0,67506.0,0.0238573]
[1772970283240,0.00022001,67517.0,67508.0,0.0238573]
[1772970283486,0.00022001,67517.0,67509.0,0.00148]
[1772970285019,0.00022001,67517.0,67509.0,0.0253373]
[1772970285563,0.00022001,67517.0,67510.0,0.0740631]
[1772970286165,0.07427547,67517.0,67509.0,0.0740631]
[1772970286525,0.0252111,67516.0,67510.0,0.00148]
[1772970286889,0.0252111,67516.0,67509.0,0.0740631]
[1772970287060,0.0252111,67516.0,67511.0,0.00148]
[1772970287264,0.07427547,67517.0,67509.0,0.0740631]
[1772970287481,0.00022001,67517.0,67512.0,0.07554083]
[1772970287695,0.0742755,67517.0,67512.0,0.00148]
[1772970289036,1.2198191,67515.0,67482.0,0.0002]
[1772970289181,0.0252111,67510.0,67487.0,0.00025314]
[1772970289388,0.15912379,67506.0,67487.0,0.00025314]
[1772970289615,0.0252111,67503.0,67488.0,0.00127983]
[1772970289822,0.15912379,67500.0,67488.0,0.00127983]
[1772970290183,0.0252111,67498.0,67488.0,0.00127983]
[1772970290574,0.15912379,67496.0,67482.0,0.0742934]
[1772970290711,0.0252111,67493.0,67482.0,0.0742934]
[1772970290907,0.07408395,67491.0,67482.0,0.0742934]
[1772970291114,0.09929505,67491.0,67482.0,0.0742934]
[1772970291766,0.0252111,67490.0,67482.0,0.0742934]
[1772970292025,0.07408395,67492.0,67482.0,0.0742934]
[1772970292026,0.07408365,67492.0,67482.0,0.0742934]
[1772970292229,0.09929475,67492.0,67482.0,0.0742934]
[1772970292631,0.0252111,67491.0,67482.0,0.0742934]
[1772970293247,0.07408504,67490.0,67482.0,0.0742934]
[1772970294364,0.07408504,67490.0,67482.0,0.0002]
[1772970294556,0.0250611,67489.0,67483.0,0.00148]
[1772970295297,0.0252111,67487.0,67483.0,0.00148]
[1772970296033,0.0252111,67487.0,67484.0,0.00148]
[1772970296487,0.07408724,67488.0,67484.0,0.00148]
[1772970296836,0.09929834,67488.0,67484.0,0.00148]
[1772970298528,0.07408297,67492.0,67484.0,0.00148]
[1772970299054,0.09929407,67492.0,67484.0,0.00148]
[1772970299280,0.0252111,67491.0,67484.0,0.00148]
[1772970299644,0.07408297,67492.0,67484.0,0.00148]
[1772970301203,0.07408285,67495.0,67484.0,0.07557163]
[1772970301204,0.07407956,67495.0,67484.0,0.07557163]
[1772970301396,0.07417364,67496.0,67486.0,0.16277513]
[1772970301554,9.44e-05,67496.0,67487.0,0.18663243]
[1772970301774,0.07417294,67496.0,67487.0,0.18663243]
[1772970301969,0.07417294,67496.0,67487.0,0.0238573]
[1772970302522,0.07417294,67496.0,67484.0,0.07557163]
[1772970304074,0.07417294,67496.0,67484.0,0.09881416]
[1772970304294,9.44e-05,67496.0,67485.0,0.02324253]
[1772970304494,9.44e-05,67496.0,67485.0,0.18566222]
[1772970304719,0.16171359,67494.0,67482.0,0.0002]
[1772970304936,0.02460133,67492.0,67483.0,0.00148]
[1772970305097,0.02460133,67492.0,67473.0,0.07410351]
[1772970305098,0.07408614,67489.0,67473.0,0.07410351]
[1772970305303,0.02460133,67487.0,67478.0,0.00148]
[1772970305504,0.02460133,67487.0,67475.0,0.0385179]
[1772970305782,0.16171359,67486.0,67468.0,0.0003032]
[1772970305973,0.02460133,67483.0,67469.0,0.00148]
[1772970306172,0.16171359,67480.0,67468.0,0.0003032]
[1772970306471,0.02460133,67477.0,67469.0,0.00148]
[1772970306673,0.16171359,67477.0,67469.0,0.00148]
[1772970306886,0.02460133,67474.0,67469.0,0.00148]
[1772970307101,0.02460133,67472.0,67465.0,0.07411232]
[1772970307301,0.07410042,67476.0,67469.0,0.00148]
[1772970307592,0.07410042,67476.0,67468.0,0.00148]
[1772970307798,0.02460133,67475.0,67468.0,0.00148]
[1772970308095,0.02460133,67475.0,67468.0,0.00187885]
[1772970308291,0.07410042,67478.0,67468.0,0.00187885]
[1772970308793,0.02372157,67477.0,67468.0,0.00187885]
[1772970309353,0.07409932,67477.0,67469.0,0.0741081]
[1772970310221,0.07409932,67479.0,67469.0,0.0741081]
[1772970310612,0.07409563,67481.0,67469.0,0.0741081]
[1772970310910,0.07409563,67481.0,67471.0,0.18552801]
[1772970311842,0.02372157,67486.0,67472.0,0.07410481]
[1772970312788,0.16171359,67485.0,67467.0,0.00148]
[1772970312987,0.16171359,67481.0,67467.0,0.00159972]
[1772970313191,0.02372157,67478.0,67467.0,0.00159972]
[1772970313549,0.02372157,67478.0,67467.0,0.00011972]
[1772970313864,0.07408614,67489.0,67469.0,0.16241969]
[1772970314032,0.07408826,67488.0,67472.0,0.02310832]
[1772970314593,0.02372157,67487.0,67472.0,0.02310832]
[1772970316913,0.0001593,67490.0,67476.0,0.16241969]
[1772970317242,0.0001593,67490.0,67479.0,0.02310832]
[1772970317741,0.07407966,67495.0,67483.0,0.16241969]
[1772970317742,0.07408059,67495.0,67483.0,0.16241969]
[1772970317886,0.07408059,67495.0,67484.0,0.02458832]
[1772970318944,0.07408059,67495.0,67485.0,0.07409053]
[1772970320429,0.07408059,67495.0,67485.0,0.09719885]
[1772970320783,0.00022001,67496.0,67486.0,0.02310832]
[1772970320998,0.00022001,67496.0,67488.0,0.02310832]
[1772970321396,0.00022001,67496.0,67487.0,0.07408834]
[1772970322155,0.00022001,67496.0,67487.0,0.07420806]
[1772970322488,0.07429885,67496.0,67487.0,0.07420806]
[1772970322689,0.07429885,67496.0,67488.0,0.00148]
[1772970323538,0.00022001,67496.0,67489.0,0.07408614]
[1772970325198,0.00015,67493.0,67489.0,0.07408614]
[1772970328689,0.00022001,67496.0,67489.0,0.07408614]
[1772970329092,0.00022001,67503.0,67491.0,0.02310832]
[1772970329299,0.07429087,67503.0,67493.0,0.02310832]
[1772970329498,0.07429087,67503.0,67494.0,0.00148]
[1772970330063,0.00022001,67503.0,67495.0,0.07407956]
[1772970330670,1e-08,67510.0,67497.0,0.02310832]
[1772970330975,0.00022001,67512.0,67495.0,0.07407956]
[1772970330976,1e-08,67511.0,67501.0,0.16241969]
[1772970331182,1e-08,67511.0,67495.0,0.07407956]
[1772970331183,0.07427659,67516.0,67504.0,0.02310832]
[1772970331319,0.07427659,67516.0,67505.0,0.02458832]
[1772970331522,0.07427679,67516.0,67505.0,0.02458832]
[1772970332003,0.07427679,67516.0,67506.0,0.07406749]
[1772970332360,0.07427679,67516.0,67507.0,0.02310832]
[1772970332523,0.00022001,67516.0,67507.0,0.02310832]
[1772970332729,0.00022001,67517.0,67507.0,0.02310832]
[1772970333167,0.07427562,67517.0,67507.0,0.02310832]
[1772970334127,0.07427553,67517.0,67508.0,0.07406529]
[1772970334469,1e-08,67523.0,67509.0,0.15527285]
[1772970334668,0.14901975,67522.0,67508.0,0.07406529]
[1772970334909,0.14901975,67522.0,67510.0,0.00148]
[1772970334910,0.02372157,67522.0,67510.0,0.00148]
[1772970335503,0.00039885,67522.0,67510.0,0.02458832]
[1772970336029,0.07444963,67522.0,67511.0,0.074062]
[1772970336821,0.00039885,67522.0,67511.0,0.074062]
[1772970337560,0.0744488,67522.0,67511.0,0.074062]
[1772970337962,0.07444922,67522.0,67511.0,0.074062]
[1772970338770,0.00039885,67522.0,67511.0,0.074062]
[1772970339187,1e-08,67530.0,67511.0,0.074062]
[1772970339377,0.00011959,67530.0,67515.0,0.02505756]
[1772970339580,0.00011959,67530.0,67511.0,0.074062]
[1772970339581,0.07416133,67530.0,67516.0,0.02653756]
[1772970339845,0.00011959,67530.0,67516.0,0.02653756]
[1772970340047,0.0001817,67532.0,67519.0,0.15527285]
[1772970340252,0.0001817,67532.0,67520.0,0.02505756]
[1772970340458,0.0001817,67532.0,67521.0,0.07405103]
[1772970340661,0.0001817,67532.0,67522.0,0.00148]
[1772970341709,0.00022001,67537.0,67522.0,0.02653756]
[1772970341915,0.00022001,67537.0,67525.0,0.15527285]
[1772970342112,0.00022001,67537.0,67526.0,0.02505756]
[1772970342307,0.00022001,67537.0,67522.0,0.00148]
[1772970342513,0.02356535,67536.0,67523.0,0.07404884]
[1772970342720,0.00022001,67537.0,67524.0,0.02505756]
[1772970342919,0.00022001,67537.0,67524.0,0.0249784]
[1772970344256,0.00022001,67537.0,67524.0,0.0248284]
[1772970344957,0.00022001,67537.0,67525.0,0.07404664]
[1772970345535,0.1725851,67539.0,67525.0,0.07404664]
[1772970345854,0.02356535,67538.0,67525.0,0.07387878]
[1772970346261,0.00022001,67537.0,67525.0,0.07387878]
[1772970346812,0.00022001,67537.0,67526.0,0.00148]
[1772970347228,0.00022001,67537.0,67527.0,0.00148]
[1772970347705,0.00022001,67537.0,67528.0,0.00148]
[1772970348289,0.00022001,67537.0,67529.0,0.00148]
[1772970348612,0.00022001,67537.0,67524.0,0.0991042]
[1772970348812,0.00022001,67537.0,67530.0,0.00148]
[1772970349602,0.14901975,67536.0,67525.0,0.07404664]
[1772970349736,0.1725851,67535.0,67525.0,0.07404664]
[1772970349935,0.07425373,67537.0,67526.0,0.02653756]
[1772970350504,0.07425373,67537.0,67527.0,0.00148]
[1772970350877,0.09781908,67537.0,67527.0,0.00148]
[1772970352584,0.07425373,67537.0,67528.0,0.07404335]
[1772970352781,0.07402994,67541.0,67528.0,0.09910091]
[1772970352987,0.07402994,67541.0,67529.0,0.02505756]
[1772970353614,0.00022001,67537.0,67529.0,0.02505756]
[1772970354348,0.00022001,67537.0,67528.0,0.07404335]
[1772970354516,0.07425381,67537.0,67528.0,0.07404335]
[1772970355075,0.07425381,67537.0,67526.0,0.07404508]
[1772970355214,0.07425381,67537.0,67527.0,0.00148]
[1772970355215,0.14901975,67534.0,67527.0,0.00148]
[1772970355413,0.1725851,67534.0,67527.0,0.00148]
[1772970355608,0.02356535,67534.0,67527.0,0.00148]
[1772970355820,0.07425381,67537.0,67527.0,0.00148]
[1772970356020,0.07425381,67537.0,67526.0,0.07404508]
[1772970356246,0.00022001,67537.0,67528.0,0.00148]
[1772970356628,0.00022001,67537.0,67529.0,0.07404226]
[1772970356828,0.0001892,67542.0,67529.0,0.07404226]
[1772970357031,0.14901975,67539.0,67529.0,0.07404226]
[1772970357263,0.02356535,67538.0,67529.0,0.07404226]
[1772970357681,0.14901975,67537.0,67530.0,0.00148]
[1772970357884,0.1725851,67537.0,67530.0,0.00148]
[1772970358046,0.1725851,67537.0,67529.0,0.07404226]
[1772970358047,0.02356535,67536.0,67529.0,0.07404226]
[1772970358278,0.1725851,67535.0,67531.0,0.00148]
[1772970358484,0.02356535,67534.0,67529.0,0.07404226]
[1772970358821,0.02356535,67534.0,67528.0,0.07404226]
[1772970359023,0.1725851,67534.0,67530.0,0.00148]
[1772970359584,0.02356535,67534.0,67530.0,0.00148]
[1772970359814,0.07403554,67536.0,67530.0,0.00131215]
[1772970360875,0.07403554,67536.0,67530.0,0.07535284]
[1772970361950,0.0742542,67537.0,67530.0,0.07535284]
[1772970362178,0.1725851,67536.0,67530.0,0.00131215]
[1772970362742,0.14901975,67536.0,67530.0,0.00131215]
[1772970362948,0.24662008,67536.0,67530.0,0.07535277]
[1772970364136,0.24662008,67536.0,67530.0,0.07520277]
[1772970364939,0.16087625,67535.0,67531.0,0.00148]
[1772970365147,0.02391721,67533.0,67531.0,0.00148]
[1772970366053,0.02391721,67533.0,67527.0,0.07404376]
[1772970366260,0.02391721,67533.0,67528.0,0.00148]
[1772970366458,0.02391721,67533.0,67527.0,0.07404376]
[1772970366459,0.02391721,67533.0,67526.0,0.0002]
[1772970366797,0.02391721,67530.0,67519.0,0.07585223]
[1772970367004,0.02391721,67527.0,67519.0,0.07585223]
[1772970367241,0.02391721,67527.0,67526.0,0.0002]
[1772970367396,0.07404226,67529.0,67519.0,0.00148]
[1772970367397,0.02391721,67525.0,67519.0,0.00148]
[1772970367601,0.16087625,67522.0,67519.0,0.00148]
[1772970367917,0.18479346,67528.0,67519.0,0.00148]
[1772970368095,0.02391721,67527.0,67519.0,0.00148]
[1772970369922,0.07404555,67526.0,67519.0,0.00148]
[1772970370642,0.0974506,67526.0,67519.0,0.00148]
[1772970372625,0.02340505,67524.0,67517.0,0.00148]
[1772970372934,0.02340505,67524.0,67512.0,0.06684961]
[1772970372935,0.16087625,67520.0,67512.0,0.06684961]
[1772970373127,0.16087625,67518.0,67515.0,0.00148]
[1772970373329,0.02340505,67517.0,67515.0,0.00148]
[1772970373753,0.02340505,67517.0,67514.0,0.00148]
[1772970373944,0.25833891,67515.0,67514.0,0.00148]
[1772970374152,0.25833891,67515.0,67508.0,0.07406501]
[1772970374153,0.23493386,67515.0,67510.0,0.00148]
[1772970374329,0.02340505,67514.0,67510.0,0.00148]
[1772970374534,0.16087625,67513.0,67505.0,0.0018692]
[1772970374731,0.09746266,67515.0,67505.0,0.07593766]
[1772970375049,0.09746266,67515.0,67506.0,0.00148]
[1772970375252,0.07405761,67515.0,67506.0,0.00148]
[1772970375807,0.09746266,67515.0,67506.0,0.00148]
[1772970378039,0.09746266,67515.0,67506.0,0.07554743]
[1772970378616,0.09746266,67517.0,67506.0,0.07554743]
[1772970378747,0.25833891,67517.0,67506.0,0.07554743]
[1772970380253,0.02340505,67516.0,67506.0,0.07554743]
[1772970381330,0.02340505,67516.0,67506.0,0.07574743]
[1772970382110,0.1842813,67516.0,67506.0,0.07574743]
[1772970383326,0.07405761,67515.0,67506.0,0.07574743]
[1772970387114,0.25833849,67516.0,67506.0,0.07574743]
[1772970387316,0.07405385,67519.0,67510.0,0.00015]
[1772970387715,0.07405301,67520.0,67510.0,0.00015]
[1772970388129,0.09745806,67520.0,67510.0,0.00015]
[1772970388371,0.00022001,67515.0,67510.0,0.00015]
[1772970392281,0.07405301,67520.0,67510.0,0.02473788]
[1772970393321,0.07405301,67520.0,67511.0,0.074062]
[1772970393521,0.07405301,67520.0,67512.0,0.00148]
[1772970393749,0.07416501,67520.0,67512.0,0.00148]
[1772970394322,0.000112,67520.0,67512.0,0.00148]
[1772970394703,0.000112,67520.0,67512.0,0.02606788]
[1772970395243,0.000112,67520.0,67513.0,0.07405981]
[1772970395850,0.00022001,67515.0,67513.0,0.07405981]
[1772970396829,0.00033201,67515.0,67513.0,0.07405981]
[1772970398373,0.0744022,67522.0,67513.0,0.07405981]
[1772970398538,0.0744022,67522.0,67512.0,0.07553981]
[1772970398779,0.02322594,67519.0,67513.0,0.00148]
[1772970398981,0.02322594,67515.0,67501.0,0.0742725]
[1772970399101,0.16123283,67512.0,67506.0,0.00148]
[1772970399299,0.00148,67521.0,67501.0,0.0002]
[1772970399300,0.02322594,67509.0,67501.0,0.0002]
[1772970399511,0.02322594,67505.0,67493.0,0.07408101]
[1772970399711,0.00148,67515.0,67496.0,0.00148]
[1772970399712,0.16123283,67502.0,67496.0,0.00148]
[1772970399937,0.02322594,67501.0,67496.0,0.00148]
[1772970400153,0.02322594,67499.0,67496.0,0.00148]
[1772970400352,0.07407626,67498.0,67496.0,0.00148]
[1772970400664,0.07407626,67498.0,67495.0,0.00148]
[1772970400665,0.0973022,67498.0,67495.0,0.00148]
[1772970400899,0.07407626,67500.0,67492.0,0.07428223]
[1772970401072,0.07406512,67509.0,67492.0,0.07428223]
[1772970401235,0.07406512,67509.0,67495.0,0.02302612]
[1772970402486,0.02322594,67508.0,67496.0,0.07427846]
[1772970403455,0.16123283,67508.0,67496.0,0.07427846]
[1772970403647,0.16123283,67504.0,67493.0,0.07556165]
[1772970403826,0.07406512,67509.0,67493.0,0.07556165]
[1772970403827,0.18445877,67503.0,67493.0,0.07556165]
[1772970404237,0.07407297,67501.0,67493.0,0.07556165]
[1772970405716,0.02322594,67497.0,67494.0,0.00148]
[1772970405913,0.02322594,67497.0,67493.0,0.07408175]
[1772970406155,0.02322594,67497.0,67494.0,0.00148]
[1772970406361,0.02322594,67497.0,67493.0,0.07408175]
[1772970406570,0.02322594,67497.0,67495.0,0.00148]
[1772970406739,0.07407846,67496.0,67492.0,0.00059836]
[1772970407061,0.02322594,67495.0,67492.0,0.00207836]
[1772970407467,0.02322594,67495.0,67492.0,0.07616082]
[1772970407736,0.07406914,67505.0,67492.0,0.07616082]
[1772970407947,0.07406968,67504.0,67492.0,0.07616082]
[1772970408371,0.07407187,67502.0,67492.0,0.07616082]
[1772970411670,0.07406684,67507.0,67493.0,0.02302612]
[1772970412069,0.02322594,67506.0,67493.0,0.02302612]
[1772970413099,0.07406858,67505.0,67494.0,0.07408065]
[1772970415906,0.07406677,67507.0,67495.0,0.02302612]
[1772970416105,0.07406677,67507.0,67495.0,0.15379278]
[1772970416309,0.02322594,67511.0,67496.0,0.02302612]
[1772970416617,0.09728826,67511.0,67496.0,0.02302612]
[1772970416945,0.02322594,67510.0,67496.0,0.02302612]
[1772970417148,0.02322594,67509.0,67496.0,0.02302612]
[1772970417926,0.07406529,67508.0,67497.0,0.07555736]
[1772970418301,0.07406529,67508.0,67497.0,0.07407736]
[1772970418555,0.09729123,67508.0,67498.0,0.00148]
[1772970420816,0.07406292,67511.0,67499.0,0.07407517]
[1772970421010,0.07406292,67511.0,67499.0,0.09710129]
[1772970421662,0.07406292,67511.0,67500.0,0.02302612]
[1772970423887,0.00022001,67511.0,67502.0,0.02314132]
[1772970425446,0.07441012,67515.0,67502.0,0.02314132]
[1772970426127,0.07441012,67515.0,67503.0,0.07407078]
[1772970426324,0.07441012,67515.0,67504.0,0.00148]
[1772970427881,0.07441012,67515.0,67505.0,0.07406858]
[1772970428204,0.09632817,67515.0,67505.0,0.07406858]
[1772970430216,0.07441012,67515.0,67505.0,0.07406858]
[1772970430422,0.07441012,67515.0,67505.0,0.09628411]
[1772970431762,0.09782242,67515.0,67505.0,0.07406858]
[1772970432516,0.07441012,67515.0,67505.0,0.07406858]
[1772970432702,0.00022001,67518.0,67506.0,0.02221553]
[1772970433291,0.00022001,67518.0,67506.0,0.15087129]
[1772970433459,0.00022001,67518.0,67506.0,0.13985496]
[1772970433682,0.00022001,67518.0,67506.0,0.14800572]
[1772970433880,0.00035171,67522.0,67508.0,0.15087129]
[1772970434076,0.00035171,67522.0,67511.0,0.00815076]
[1772970434279,0.00035171,67522.0,67512.0,0.00969974]
[1772970434576,0.00035171,67522.0,67513.0,0.07405981]
[1772970435600,0.0234123,67528.0,67513.0,0.07405981]
[1772970435806,0.0235318,67528.0,67513.0,0.07405981]
[1772970436297,0.0235318,67528.0,67513.0,0.08244875]
[1772970436497,0.0235318,67528.0,67513.0,0.08344875]
[1772970436898,0.0235318,67528.0,67513.0,0.08244875]
[1772970437101,0.0001195,67528.0,67516.0,0.00838894]
[1772970437394,0.0001195,67528.0,67517.0,0.00834022]
[1772970437697,0.0001195,67528.0,67518.0,0.00148]
[1772970437870,0.0001227,67531.0,67519.0,0.00834022]
[1772970438111,0.0001227,67531.0,67519.0,0.00845972]
[1772970438848,0.0001227,67531.0,67520.0,0.07405213]
[1772970439612,0.0234123,67534.0,67520.0,0.07405213]
[1772970439613,0.0196459,67534.0,67520.0,0.07405213]
[1772970439751,0.00170001,67537.0,67521.0,0.02221553]
[1772970440297,0.02511231,67537.0,67521.0,0.02221553]
[1772970441978,0.02363231,67537.0,67522.0,0.07404993]
[1772970442112,0.00022001,67537.0,67523.0,0.02221553]
[1772970442308,0.00022001,67537.0,67525.0,0.02221553]
[1772970444029,0.00022001,67537.0,67526.0,0.07404555]
[1772970446012,0.02363231,67537.0,67526.0,0.07404555]
[1772970449036,0.02363231,67537.0,67520.0,0.07405]
[1772970449037,0.0234123,67535.0,67520.0,0.07405]
[1772970449244,0.15961414,67532.0,67521.0,0.00148]
[1772970449443,0.0234123,67529.0,67521.0,0.00148]
[1772970449689,0.0234123,67525.0,67517.0,0.00148]
[1772970449868,0.0234123,67524.0,67517.0,0.0755348]
[1772970450227,0.07404884,67523.0,67517.0,0.0755348]
[1772970450427,0.0234123,67522.0,67515.0,0.07553542]
[1772970450762,0.0234123,67522.0,67516.0,0.07405651]
[1772970451869,0.0234123,67522.0,67517.0,0.0002]
[1772970452074,0.0234123,67522.0,67515.0,0.07405656]
[1772970453437,0.00011952,67525.0,67515.0,0.07405656]
[1772970454132,0.07416668,67525.0,67515.0,0.07405656]
[1772970454957,0.0234123,67523.0,67515.0,0.07405656]
[1772970456400,0.09746198,67523.0,67515.0,0.07405656]